fUSD/lending_fUSD_20241020
["ID","MTS","AMOUNT","RATE_DAILY","PERIOD"]
[340539870,1729420320461,-500.0,0.00024931,2]
[340539871,1729420320470,-500.0,0.00024931,2]
[340539872,1729420320479,-657.44,0.00024931,2]
[340539873,1729420320489,-510.59,0.00024931,2]
[340539874,1729420320498,-576.66129604,0.00024931,2]
[340539875,1729420320507,-3001.18,0.00024931,2]
[340539876,1729420320517,-657.44,0.00024931,2]
[340539877,1729420320527,-510.59,0.00024931,2]
[340539878,1729420320535,-500.0,0.00024931,2]
[340539879,1729420320545,-657.44,0.00024931,2]
[340539880,1729420320554,-3001.18,0.00024931,2]
[340539881,1729420320563,-3001.18,0.00024931,2]
[340539882,1729420320573,-500.0,0.00024931,2]
[340539883,1729420320582,-657.56701546,0.00024931,2]
[340539884,1729420320591,-510.59,0.00024931,2]
[340539885,1729420320601,-500.0,0.00024931,2]
[340539886,1729420320611,-3001.18,0.00024931,2]
[340539887,1729420320624,-500.0,0.00024931,2]
[340539888,1729420320633,-510.59,0.00024931,2]
[340539889,1729420320643,-3001.18,0.00024931,2]
[340539890,1729420320653,-510.59,0.00024931,2]
[340539891,1729420320662,-3001.18,0.00024931,2]
[340539892,1729420320671,-500.0,0.00024931,2]
[340539893,1729420320680,-510.59,0.00024931,2]
[340539894,1729420320689,-3001.18,0.00024931,2]
[340539895,1729420320699,-510.59,0.00024931,2]
[340539896,1729420320708,-500.0,0.00024931,2]
[340539897,1729420320717,-3001.18,0.00024931,2]
[340539898,1729420320726,-510.68120027,0.00024931,2]
[340539899,1729420320735,-500.0,0.00024931,2]
[340539900,1729420320745,-3001.18,0.00024931,2]
[340539901,1729420320754,-500.0,0.00024931,2]
[340539902,1729420320764,-3001.18,0.00024931,2]
[340539903,1729420320778,-500.0,0.00024931,2]
[340539904,1729420320788,-340.81194905,0.00024931,2]
[340539905,1729420320797,-3001.18,0.00024931,2]
[340539906,1729420320807,-2364.61,0.00024931,7]
[340539907,1729420320816,-3001.18,0.00024931,2]
[340539908,1729420320827,-2364.61,0.00024931,7]
[340539909,1729420320836,-2364.61,0.00024931,7]
[340539910,1729420320846,-3001.18,0.00024931,2]
[340539911,1729420320855,-2364.61,0.00024931,7]
[340539912,1729420320864,-3001.18,0.00024931,2]
[340539913,1729420320873,-2364.61,0.00024931,7]
[340539914,1729420320882,-1504.09,0.00024931,2]
[340539915,1729420320891,-2364.61,0.00024931,7]
[340539916,1729420320900,-3001.18,0.00024931,2]
[340539917,1729420320909,-1504.09,0.00024931,2]
[340539918,1729420320918,-253.6142888,0.00024931,2]
[340539919,1729420320927,-2364.61,0.00024931,7]
[340539920,1729420320936,-3001.18,0.00024931,2]
[340539921,1729420320945,-1504.09,0.00024931,2]
[340539922,1729420320954,-2364.61,0.00024931,7]
[340539923,1729420320963,-3001.18,0.00024931,2]
[340539924,1729420320972,-2364.61,0.00024931,7]
[340539925,1729420320981,-1504.09,0.00024931,2]
[340539926,1729420320990,-3001.18,0.00024931,2]
[340539927,1729420320999,-2364.61,0.00024931,7]
[340539928,1729420321008,-1504.09,0.00024931,2]
[340539929,1729420321018,-3001.18,0.00024931,2]
[340539930,1729420321027,-2364.61,0.00024931,7]
[340539931,1729420321036,-3001.18,0.00024931,2]
[340539932,1729420321045,-1504.09,0.00024931,2]
[340539933,1729420321054,-3001.18,0.00024931,2]
[340539934,1729420321063,-1504.09,0.00024931,2]
[340539935,1729420321073,-2364.61,0.00024931,7]
[340539936,1729420321082,-3001.18,0.00024931,2]
[340539937,1729420321090,-2364.61,0.00024931,7]
[340539938,1729420321100,-1504.09,0.00024931,2]
[340539939,1729420321109,-1504.09,0.00024931,2]
[340539940,1729420321118,-2364.61,0.00024931,7]
[340539941,1729420321127,-3001.18,0.00024931,2]
[340539942,1729420321136,-2364.61,0.00024931,7]
[340539943,1729420321146,-1504.09,0.00024931,2]
[340539944,1729420321155,-500.0,0.00024931,2]
[340539945,1729420321164,-3001.35997302,0.00024931,2]
[340539946,1729420321173,-2364.61,0.00024931,7]
[340539947,1729420321183,-1504.09,0.00024931,2]
[340539948,1729420321192,-542.51533226,0.00024931,2]
[340539949,1729420321201,-1425.01,0.00024931,2]
[340539950,1729420321210,-2364.61,0.00024931,7]
[340539951,1729420321219,-500.0,0.00024931,2]
[340539952,1729420321228,-1425.01,0.00024931,2]
[340539953,1729420321236,-2364.61,0.00024931,7]
[340539954,1729420321245,-1504.09,0.00024931,2]
[340539955,1729420321254,-500.0,0.00024931,2]
[340539956,1729420321263,-2364.61,0.00024931,7]
[340539957,1729420321272,-1425.01,0.00024931,2]
[340539958,1729420321282,-500.0,0.00024931,2]
[340539959,1729420321291,-2364.61,0.00024931,7]
[340539960,1729420321300,-1425.01,0.00024931,2]
[340539961,1729420321309,-1504.09,0.00024931,2]
[340539962,1729420321318,-2364.61,0.00024931,7]
[340539963,1729420321327,-513.11538524,0.00024931,2]
[340539964,1729420321337,-1425.01,0.00024931,2]
[340539965,1729420321346,-1504.09,0.00024931,2]
[340539966,1729420321355,-2364.61,0.00024931,7]
[340539967,1729420321363,-1425.01,0.00024931,2]
[340539968,1729420321372,-1504.09,0.00024931,2]
[340539969,1729420321381,-2364.61,0.00024931,7]
[340539970,1729420321390,-1425.01,0.00024931,2]
[340539971,1729420321399,-1504.09,0.00024931,2]
[340539972,1729420321408,-2364.82093742,0.00024931,7]
[340539973,1729420321417,-951.43,0.00024931,2]
[340539974,1729420321426,-1425.01,0.00024931,2]
[340539975,1729420321435,-1504.09,0.00024931,2]
[340539976,1729420321444,-500.0,0.00024931,2]
[340539977,1729420321453,-951.43,0.00024931,2]
[340539978,1729420321462,-1425.01,0.00024931,2]
[340539979,1729420321472,-1504.09,0.00024931,2]
[340539980,1729420321481,-500.0,0.00024931,2]
[340539981,1729420321490,-951.43,0.00024931,2]
[340539982,1729420321499,-818.32,0.00024931,2]
[340539983,1729420321509,-1425.01,0.00024931,2]
[340539984,1729420321519,-1504.09,0.00024931,2]
[340539985,1729420321529,-500.0,0.00024931,2]
[340539986,1729420321540,-951.43,0.00024931,2]
[340539987,1729420321549,-818.32,0.00024931,2]
[340539988,1729420321558,-1425.01,0.00024931,2]
[340539989,1729420321567,-1504.09,0.00024931,2]
[340539990,1729420321577,-500.0,0.00024931,2]
[340539991,1729420321586,-951.43,0.00024931,2]
[340539992,1729420321597,-818.32,0.00024931,2]
[340539993,1729420321608,-1425.01,0.00024931,2]
[340539994,1729420321620,-1504.09,0.00024931,2]
[340539995,1729420321630,-951.43,0.00024931,2]
[340539996,1729420321639,-818.32,0.00024931,2]
[340539997,1729420321649,-1425.01,0.00024931,2]
[340539998,1729420321659,-1504.09,0.00024931,2]
[340539999,1729420321669,-951.43,0.00024931,2]
[340540000,1729420321678,-500.0,0.00024931,2]
[340540001,1729420321687,-818.32,0.00024931,2]
[340540002,1729420321698,-1425.01,0.00024931,2]
[340540003,1729420321707,-500.0,0.00024931,2]
[340540004,1729420321717,-1504.09,0.00024931,2]
[340540005,1729420321727,-951.43,0.00024931,2]
[340540006,1729420321736,-500.0,0.00024931,2]
[340540007,1729420321747,-818.32,0.00024931,2]
[340540008,1729420321757,-1425.01,0.00024931,2]
[340540009,1729420321766,-500.0,0.00024931,2]
[340540010,1729420321775,-1504.12391723,0.00024931,2]
[340540011,1729420321784,-951.43,0.00024931,2]
[340540012,1729420321793,-818.32,0.00024931,2]
[340540013,1729420321803,-500.0,0.00024931,2]
[340540014,1729420321812,-1425.01,0.00024931,2]
[340540015,1729420321821,-951.43,0.00024931,2]
[340540016,1729420321833,-500.0,0.00024931,2]
[340540017,1729420321842,-818.32,0.00024931,2]
[340540018,1729420321851,-500.0,0.00024931,2]
[340540019,1729420321861,-1425.01,0.00024931,2]
[340540020,1729420321870,-951.43,0.00024931,2]
[340540021,1729420321880,-818.32,0.00024931,2]
[340540022,1729420321891,-500.0,0.00024931,2]
[340540023,1729420321900,-500.0,0.00024931,2]
[340540024,1729420321911,-500.0,0.00024931,2]
[340540025,1729420321921,-1425.01,0.00024931,2]
[340540026,1729420321931,-951.43,0.00024931,2]
[340540027,1729420321941,-463.49070401,0.00024931,2]
[340540028,1729420321950,-500.0,0.00024931,2]
[340540029,1729420321961,-818.32,0.00024931,2]
[340540030,1729420321971,-500.0,0.00024931,2]
[340540031,1729420321982,-1425.01,0.00024931,2]
[340540032,1729420321992,-500.0,0.00024931,2]
[340540033,1729420322002,-500.0,0.00024931,2]
[340540034,1729420322012,-951.43,0.00024931,2]
[340540035,1729420322021,-500.0,0.00024931,2]
[340540036,1729420322031,-818.32,0.00024931,2]
[340540037,1729420322042,-1425.01,0.00024931,2]
[340540038,1729420322053,-500.0,0.00024931,2]
[340540039,1729420322063,-500.0,0.00024931,2]
[340540040,1729420322072,-951.43,0.00024931,2]
[340540041,1729420322082,-500.0,0.00024931,2]
[340540042,1729420322093,-1425.01,0.00024931,2]
[340540043,1729420322102,-818.32,0.00024931,2]
[340540044,1729420322112,-500.0,0.00024931,2]
[340540045,1729420322121,-951.43,0.00024931,2]
[340540046,1729420322131,-500.0,0.00024931,2]
[340540047,1729420322140,-1425.01,0.00024931,2]
[340540048,1729420322150,-818.32,0.00024931,2]
[340540049,1729420322160,-500.0,0.00024931,2]
[340540050,1729420322170,-500.0,0.00024931,2]
[340540051,1729420322179,-951.43,0.00024931,2]
[340540052,1729420322189,-1425.01,0.00024931,2]
[340540053,1729420322199,-500.0,0.00024931,2]
[340540054,1729420322208,-818.32,0.00024931,2]
[340540055,1729420322218,-500.0,0.00024931,2]
[340540056,1729420322227,-543.45,0.00024931,2]
[340540057,1729420322237,-951.43,0.00024931,2]
[340540058,1729420322246,-500.0,0.00024931,2]
[340540059,1729420322256,-818.32,0.00024931,2]
[340540060,1729420322266,-500.0,0.00024931,2]
[340540061,1729420322276,-1425.0198191,0.00024931,2]
[340540062,1729420322285,-500.0,0.00024931,2]
[340540063,1729420322294,-951.43,0.00024931,2]
[340540064,1729420322304,-500.0,0.00024931,2]
[340540065,1729420322313,-818.32,0.00024931,2]
[340540066,1729420322322,-951.43,0.00024931,2]
[340540067,1729420322332,-500.0,0.00024931,2]
[340540068,1729420322341,-818.32,0.00024931,2]
[340540069,1729420322350,-500.0,0.00024931,2]
[340540070,1729420322359,-951.43,0.00024931,2]
[340540071,1729420322368,-500.0,0.00024931,2]
[340540072,1729420322377,-818.32,0.00024931,2]
[340540073,1729420322386,-500.0,0.00024931,2]
[340540074,1729420322395,-951.43,0.00024931,2]
[340540075,1729420322404,-572.55585632,0.00024931,2]
[340540076,1729420322413,-609.10762851,0.00024931,2]
[340540077,1729420322424,-818.32,0.00024931,2]
[340540078,1729420322434,-951.43,0.00024931,2]
[340540079,1729420322444,-818.32,0.00024931,2]
[340540080,1729420322453,-951.43,0.00024931,2]
[340540081,1729420322464,-818.32,0.00024931,2]
[340540082,1729420322473,-572.47,0.00024931,2]
[340540083,1729420322483,-951.5099625,0.00024931,2]
[340540084,1729420322492,-2509.67,0.00024931,2]
[340540085,1729420322501,-818.32,0.00024931,2]
[340540086,1729420322680,-572.47,0.00024931,2]
[340540087,1729420322691,-2509.67,0.00024931,2]
[340540088,1729420322700,-818.32,0.00024931,2]
[340540089,1729420322710,-572.47,0.00024931,2]
[340540090,1729420322720,-500.0,0.00024931,2]
[340540091,1729420322730,-818.45318835,0.00024931,2]
[340540092,1729420322740,-572.47,0.00024931,2]
[340540093,1729420322751,-500.0,0.00024931,2]
[340540094,1729420322760,-2509.67,0.00024931,2]
[340540095,1729420322770,-572.47,0.00024931,2]
[340540096,1729420322780,-500.0,0.00024931,2]
[340540097,1729420322791,-2509.67,0.00024931,2]
[340540098,1729420322800,-572.47,0.00024931,2]
[340540099,1729420322810,-508.64343016,0.00024931,2]
[340540100,1729420322820,-2509.67,0.00024931,2]
[340540101,1729420322832,-572.47,0.00024931,2]
[340540102,1729420322842,-572.47,0.00024931,2]
[340540103,1729420322851,-2509.67,0.00024931,2]
[340540104,1729420322861,-572.47,0.00024931,2]
[340540105,1729420322871,-2509.67,0.00024931,2]
[340540106,1729420322880,-572.47,0.00024931,2]
[340540107,1729420322891,-2509.67,0.00024931,2]
[340540108,1729420322901,-1439.95,0.00024931,2]
[340540109,1729420322911,-572.47,0.00024931,2]
[340540110,1729420322921,-2509.67,0.00024931,2]
[340540111,1729420322931,-1439.95,0.00024931,2]
[340540112,1729420322941,-572.47,0.00024931,2]
[340540113,1729420322951,-2509.67,0.00024931,2]
[340540114,1729420322960,-572.47,0.00024931,2]
[340540115,1729420322970,-2509.67,0.00024931,2]
[340540116,1729420322980,-2509.67,0.00024931,2]
[340540117,1729420322990,-572.47,0.00024931,2]
[340540118,1729420323000,-572.47,0.00024931,2]
[340540119,1729420323009,-2509.67,0.00024931,2]
[340540120,1729420323019,-572.47,0.00024931,2]
[340540121,1729420323029,-2509.67,0.00024931,2]
[340540122,1729420323039,-572.47,0.00024931,2]
[340540123,1729420323048,-2509.67,0.00024931,2]
[340540124,1729420323057,-2509.67,0.00024931,2]
[340540125,1729420323067,-572.47,0.00024931,2]
[340540126,1729420323076,-500.0,0.00024931,2]
[340540127,1729420323085,-2509.67,0.00024931,2]
[340540128,1729420323095,-1439.95,0.00024931,2]
[340540129,1729420323104,-572.47,0.00024931,2]
[340540130,1729420323114,-500.0,0.00024931,2]
[340540131,1729420323123,-2509.67,0.00024931,2]
[340540132,1729420323133,-1439.95,0.00024931,2]
[340540133,1729420323143,-572.47,0.00024931,2]
[340540134,1729420323152,-2509.67,0.00024931,2]
[340540135,1729420323162,-572.47,0.00024931,2]
[340540136,1729420323171,-1439.95,0.00024931,2]
[340540137,1729420323181,-2509.67,0.00024931,2]
[340540138,1729420323190,-572.47,0.00024931,2]
[340540139,1729420323199,-1439.95,0.00024931,2]
[340540140,1729420323209,-2509.67,0.00024931,2]
[340540141,1729420323218,-572.47,0.00024931,2]
[340540142,1729420323228,-1439.95,0.00024931,2]
[340540143,1729420323237,-500.0,0.00024931,2]
[340540144,1729420323247,-2509.67,0.00024931,2]
[340540145,1729420323256,-500.0,0.00024931,2]
[340540146,1729420323266,-1439.95,0.00024931,2]
[340540147,1729420323275,-489.52454219,0.00024931,2]
[340540148,1729420323285,-572.63,0.00024931,2]
[340540149,1729420323294,-2509.67,0.00024931,2]
[340540150,1729420323303,-500.0,0.00024931,2]
[340540151,1729420323313,-1439.95,0.00024931,2]
[340540152,1729420323322,-2509.7750745,0.00024931,2]
[340540153,1729420323331,-500.0,0.00024931,2]
[340540154,1729420323341,-500.0,0.00024931,2]
[340540155,1729420323351,-500.0,0.00024931,2]
[340540156,1729420323360,-1439.95,0.00024931,2]
[340540157,1729420323369,-500.0,0.00024931,2]
[340540158,1729420323379,-234.13451395,0.00024931,2]
[340540159,1729420323388,-500.0,0.00024931,2]
[340540160,1729420323398,-1439.95,0.00024931,2]
[340540161,1729420323407,-1439.95,0.00024931,2]
[340540162,1729420323416,-500.0,0.00024931,2]
[340540163,1729420323426,-685.49,0.00024931,2]
[340540164,1729420323436,-1439.95,0.00024931,2]
[340540165,1729420323445,-248.80785685,0.00024931,2]
[340540166,1729420323455,-1439.95,0.00024931,2]
[340540167,1729420323464,-685.49,0.00024931,2]
[340540168,1729420323474,-1439.95,0.00024931,2]
[340540169,1729420323484,-685.49,0.00024931,2]
[340540170,1729420323494,-1439.95,0.00024931,2]
[340540171,1729420323504,-685.49,0.00024931,2]
[340540172,1729420323513,-1439.95,0.00024931,2]
[340540173,1729420323528,-685.49,0.00024931,2]
[340540174,1729420323537,-598.94,0.00024931,2]
[340540175,1729420323547,-1439.95,0.00024931,2]
[340540176,1729420323556,-685.49,0.00024931,2]
[340540177,1729420323566,-598.94,0.00024931,2]
[340540178,1729420323576,-1439.95,0.00024931,2]
[340540179,1729420323585,-685.49,0.00024931,2]
[340540180,1729420323597,-598.94,0.00024931,2]
[340540181,1729420323607,-1439.95,0.00024931,2]
[340540182,1729420323617,-2414.12,0.00024931,2]
[340540183,1729420323629,-685.49,0.00024931,2]
[340540184,1729420323639,-500.0,0.00024931,2]
[340540185,1729420323648,-598.94,0.00024931,2]
[340540186,1729420323659,-1439.95,0.00024931,2]
[340540187,1729420323668,-2414.12,0.00024931,2]
[340540188,1729420323677,-685.49,0.00024931,2]
[340540189,1729420323687,-598.94,0.00024931,2]
[340540190,1729420323698,-1439.95,0.00024931,2]
[340540191,1729420323707,-2414.12,0.00024931,2]
[340540192,1729420323717,-685.49,0.00024931,2]
[340540193,1729420323726,-598.94,0.00024931,2]
[340540194,1729420323736,-1439.95,0.00024931,2]
[340540195,1729420323745,-2414.12,0.00024931,2]
[340540196,1729420323755,-685.49,0.00024931,2]
[340540197,1729420323764,-598.94,0.00024931,2]
[340540198,1729420323775,-1439.98602143,0.00024931,2]
[340540199,1729420323784,-2414.12,0.00024931,2]
[340540200,1729420323794,-685.49,0.00024931,2]
[340540201,1729420323803,-598.94,0.00024931,2]
[340540202,1729420323812,-2414.12,0.00024931,2]
[340540203,1729420323822,-598.94,0.00024931,2]
[340540204,1729420323832,-685.49,0.00024931,2]
[340540205,1729420323842,-500.0,0.00024931,2]
[340540206,1729420323852,-2414.12,0.00024931,2]
[340540207,1729420323861,-598.94,0.00024931,2]
[340540208,1729420323871,-685.49,0.00024931,2]
[340540209,1729420323880,-500.0,0.00024935,2]
[340540210,1729420323890,-150.0,0.00024935,2]
[340540211,1729420323899,-500.0,0.00024935,2]
[340540212,1729420323909,-951.0,0.00024935,2]
[340540213,1729420323918,-150.0,0.00024939,2]
[340540214,1729420323928,-400.0,0.0002497,2]
[340540215,1729420323937,-701.92527447,0.0002497,2]
[340540216,1729420323946,-500.0,0.00024973,2]
[340540217,1729420323956,-500.97093054,0.00024973,2]
[340540218,1729420323965,-502.70163731,0.00024973,2]
[340540219,1729420323975,-4141.2490154,0.00024983,2]
[340540220,1729420323985,-4495.636456,0.00024983,2]
[340540221,1729420323995,-4850.0238965,0.00024983,2]
[340540222,1729420324004,-5204.4113371,0.00024983,2]
[340540223,1729420324013,-95977.31519219,0.00024995,10]
[340540224,1729420324026,-343.404441,0.00024995,7]
[340540225,1729420324036,-343.40444,0.00024995,7]
[340540226,1729420324045,-150.0,0.00024999,2]
[340540227,1729420324055,-2000.0,0.00024999,2]
[340540228,1729420324064,-2000.0,0.00024999,2]
[340540229,1729420324073,-11393.59267465,0.00024999,2]
[340540230,1729420324083,-2500.0,0.00024999,5]
[340540231,1729420324092,-4041040.07130195,0.00025,2]
[340540232,1729420324101,-37326522.95416322,0.00025,2]
[340540233,1729420324111,-328.05990558,0.00025,2]
[340540234,1729420324120,-14909645.16212072,0.00025,2]
[340540235,1729420326094,-500.0,0.00024931,2]
[340540236,1729420326107,-199.08714881,0.00024931,2]
[340540237,1729420326117,-3225.11739741,0.00025,2]
[340540250,1729421236151,-342.90406316,0.00020526,2]
[340540278,1729421399172,250.0,0.0001,2]
[340540282,1729421431439,-300.0,0.00012,2]
[340540283,1729421431449,-2.07433684,0.00020526,2]
[340540284,1729421431459,-246.18,0.00021863,2]
[340540285,1729421431471,-375.0,0.00021917,2]
[340540286,1729421431480,-203.894,0.00022026,2]
[340540287,1729421431489,-303.7591994,0.00022026,2]
[340540288,1729421431501,-146.2408006,0.00022026,2]
[340540289,1729421431511,-353.7591994,0.00022026,2]
[340540290,1729421431525,-332.75527609,0.00022026,2]
[340540291,1729421431543,-1727.30252451,0.00022026,2]
[340540292,1729421431552,-473.46367549,0.00022026,2]
[340540293,1729421431563,-332.36232451,0.00022026,2]
[340540294,1729421431572,-150.0,0.00022026,2]
[340540295,1729421431581,-717.63767549,0.00022026,2]
[340540296,1729421431592,-366.36232451,0.00022026,2]
[340540298,1729421431776,-647.0,0.00023,2]
[340540300,1729421431787,-342.899325,0.00023607,2]
[340540302,1729421431798,-250.0,0.00023726,2]
[340540304,1729421431808,-250.0,0.00023747,2]
[340540305,1729421431819,-1000.0,0.00023769,2]
[340540307,1729421431829,-246.18,0.00024127,2]
[340540308,1729421431838,-410.51703335,0.00024541,2]
[340540310,1729421431847,-167.68,0.00024568,2]
[340540312,1729421431857,-750.0,0.00024657,2]
[340540313,1729421431867,-215.4,0.00024658,7]
[340540314,1729421431877,-261.923,0.00024754,2]
[340540315,1729421431886,-150.0,0.00024784,2]
[340540316,1729421431895,-3966.7968,0.00024785,2]
[340540317,1729421431905,-786.2575,0.00024785,2]
[340540318,1729421431914,-932.8633,0.00024785,2]
[340540319,1729421431923,-1482.88740725,0.00024785,2]
[340540320,1729421431940,-3779.49389275,0.00024785,2]
[340540321,1729421431950,-1000.0,0.00024799,2]
[340540322,1729421431961,-2988.8763,0.000248,2]
[340540323,1729421431970,-1595.7447,0.00024831,2]
[340540324,1729421431979,-6265.09558478,0.00024831,2]
[340540325,1729421431991,-379.0,0.00024831,2]
[340540326,1729421432006,-1231.85132041,0.00024831,2]
[340540327,1729421432017,-311.84172578,0.00024831,2]
[340540328,1729421432028,-424.87953154,0.00024831,2]
[340540330,1729421432042,-538.29120614,0.00024831,2]
[340540332,1729421432053,-258.36497239,0.00024831,2]
[340540335,1729421432066,-9050.37619106,0.00024831,2]
[340540336,1729421432075,-5644.90667135,0.00024839,2]
[340540340,1729421437557,-262.77197007,0.00024839,2]
[340540341,1729421437740,-955.199177,0.00024839,2]
[340540345,1729421439489,-150.0,0.00022026,2]
[340540346,1729421439498,-3834.37746997,0.00024839,2]
[340540347,1729421439509,-884.16644664,0.00024839,2]
[340540348,1729421439593,-588.2445,0.00024839,2]
[340540349,1729421439604,-5239.26500678,0.00024839,2]
[340540350,1729421439616,-1050.76929024,0.00024839,2]
[340540351,1729421439625,-4354.6832456,0.00024846,2]
[340540352,1729421439635,-1086.00001,0.00024846,2]
[340540353,1729421439646,-6058.74999999,0.00024846,2]
[340540354,1729421439657,-505.2624392,0.00024846,2]
[340540355,1729421439668,-6455.00483726,0.00024846,2]
[340540356,1729421439677,-6219.41067495,0.00024854,2]
[340540357,1729421439729,-1641.30252,0.00024854,2]
[340540358,1729421439756,-266.56,0.00024854,2]
[340540359,1729421439783,-1600.65,0.00024854,2]
[340540360,1729421439811,-2363.9,0.00024854,2]
[340540361,1729421439822,-2305.08419332,0.00024854,2]
[340540368,1729421442574,-4062.79314378,0.00024854,2]
[340540369,1729421442584,-3334.77487815,0.00024862,2]
[340540370,1729421442682,-383.20020393,0.00024862,2]
[340540371,1729421442694,-14741.72544997,0.00024862,2]
[340540372,1729421442703,-2690.30263212,0.00024869,2]
[340540373,1729421442714,-5630.95657849,0.00024869,2]
[340540374,1729421442726,-759.5749,0.00024869,2]
[340540375,1729421442737,-472.8632825,0.00024869,2]
[340540376,1729421442805,-490.45,0.00024869,2]
[340540377,1729421442818,-715.77,0.00024869,2]
[340540379,1729421445482,-5884.21188928,0.00024869,2]
[340540380,1729421445493,-1815.57124966,0.00024869,2]
[340540381,1729421445502,-322.29794661,0.00024873,2]
[340540382,1729421445513,-277.726,0.00024873,2]
[340540383,1729421445522,-500.0,0.00024873,2]
[340540384,1729421445531,-154.95,0.00024877,30]
[340540385,1729421445540,-901.45480373,0.00024877,2]
[340540386,1729421445552,-1384.37897866,0.00024877,2]
[340540387,1729421445564,-740.40033588,0.00024877,2]
[340540388,1729421445575,-1034.05360558,0.00024877,2]
[340540389,1729421445587,-1781.2507,0.00024877,2]
[340540390,1729421445598,-1553.6,0.00024877,2]
[340540391,1729421445609,-446.4191852,0.00024877,2]
[340540392,1729421445620,-729.12371714,0.00024877,2]
[340540393,1729421445631,-453.46218221,0.00024877,2]
[340540394,1729421445643,-558.02213056,0.00024877,2]
[340540395,1729421445654,-585.71,0.00024877,2]
[340540396,1729421445666,-1619.45,0.00024877,2]
[340540397,1729421445677,-1097.57852725,0.00024877,2]
[340540398,1729421445688,-315.30871413,0.00024877,2]
[340540399,1729421445703,-4919.07120143,0.00024877,2]
[340540400,1729421445714,-340.41645028,0.00024877,2]
[340540401,1729421445723,-500.0,0.00024885,2]
[340540402,1729421445732,-500.0,0.00024885,2]
[340540403,1729421445741,-911.0,0.00024885,2]
[340540404,1729421445750,-2000.0,0.000249,2]
[340540405,1729421445759,-2000.0,0.000249,2]
[340540406,1729421445768,-2000.0,0.000249,2]
[340540407,1729421445777,-2000.0,0.000249,2]
[340540408,1729421445786,-2000.0,0.000249,2]
[340540409,1729421445795,-1050.79785634,0.000249,2]
[340540410,1729421445804,-367.52057287,0.000249,2]
[340540411,1729421445813,-528.07289967,0.000249,2]
[340540412,1729421445822,-410.51703336,0.00024911,2]
[340540413,1729421445831,-500.0,0.0002493,2]
[340540414,1729421445843,-500.0,0.0002493,2]
[340540415,1729421445852,-500.0,0.0002493,2]
[340540416,1729421445861,-409.16784488,0.0002493,2]
[340540417,1729421445871,-500.0,0.00024931,2]
[340540418,1729421445880,-500.0,0.00024931,2]
[340540419,1729421445889,-500.0,0.00024931,2]
[340540420,1729421445898,-500.0,0.00024931,2]
[340540421,1729421445908,-500.0,0.00024931,2]
[340540422,1729421445920,-500.0,0.00024931,2]
[340540423,1729421445930,-500.0,0.00024931,2]
[340540424,1729421445939,-415.24700593,0.00024931,2]
[340540425,1729421445949,-574.44873488,0.00024931,2]
[340540426,1729421445959,-500.0,0.00024931,2]
[340540427,1729421445969,-592.471977,0.00024931,2]
[340540429,1729421445979,-500.0,0.00024931,2]
[340540430,1729421445988,-500.0,0.00024931,2]
[340540431,1729421445997,-150.0,0.00024931,2]
[340540432,1729421446007,-500.0,0.00024931,2]
[340540433,1729421446017,-500.0,0.00024931,2]
[340540434,1729421446026,-500.0,0.00024931,2]
[340540435,1729421446035,-500.0,0.00024931,2]
[340540436,1729421446045,-500.0,0.00024931,2]